Cogmind - Beta 14 @@@ ROGUE MODE // 2025.01.05 @ 19:04:47 Player: MadBadger Result: Destroyed by G-47 Trooper with Particle Gun Performance ------------- Evolutions (2) 1000 Regions Visited (3) 600 Robots Destroyed (68) 340 Value Destroyed (1711) 1711 Prototype IDs (4) 80 Alien Tech Used (0) 0 Bonus (15) 15 TOTAL SCORE: 3746 Bonus ------- High Alert Combat Kills 15 Cogmind --------- Core Integrity 0/550 Matter 220/300 Energy 100/100 System Corruption 2% Temperature Cool (54) Movement Core (750) Ox14 Location -8/Materials Parts ------- > --- POWER (1) -------- (None) > --- PROPULSION (4) --- (None) > --- UTILITY (2) ------ High-capacity Storage Unit > --- WEAPON (4) ------- Assault Cannon > --- INVENTORY (20) --- Light Nuclear Core Light Nuclear Core Visual Processing Unit Sensor Array Improved Sensor Array Hardlight Generator Improved Shield Generator Improved Shield Generator Improved Shield Generator Improved Shield Generator Improved Shield Generator Component Analysis Suite Component Analysis Suite Heavy EM Shotgun Heavy EM Shotgun Ion Cannon Gauss Rifle Datajack Improved Datajack Peak State ------------ > --- POWER ------------ Cooled Ion Engine > --- PROPULSION ------- Aluminum Leg Carbon-fiber Leg Titanium Leg Titanium Leg > --- UTILITY ---------- High-capacity Storage Unit Structural Scanner > --- WEAPON ----------- Heavy EM Shotgun Shotgun Improved Assault Rifle Improved Assault Rifle > --- INVENTORY -------- Light Nuclear Core Visual Processing Unit Sensor Array Improved Sensor Array Hardlight Generator Improved Shield Generator Improved Shield Generator Improved Shield Generator Improved Shield Generator Improved Shield Generator Component Analysis Suite Component Analysis Suite EM Pulse Gun Medium Laser Ion Cannon Assault Rifle Assault Rifle Assault Cannon Datajack Improved Datajack [Rating: 32] Favorites ----------- Power Light Nuclear Core Engine Ion Engine Power Core Light Nuclear Core Propulsion Aluminum Leg Treads Light Treads Leg Aluminum Leg Utility High-capacity Storage Unit Device Structural Scanner Storage High-capacity Storage Unit Weapon Improved Assault Rifle Energy Gun EM Shotgun Ballistic Gun Improved Assault Rifle Ballistic Cannon Assault Cannon Launcher Mini Grenade Launcher Special Melee Weapon Datajack Build | -11 -10 -9 -8 ------- Run | Yrd Mat Mat Mat Slots Evolved 4 | . . 2 2 Power . | . . . . Propulsion 2 | . . 1 1 Utility . | . . . . Weapon 2 | . . 1 1 Parts Attached 37 | 6 12 5 14 Power 4 | 1 1 . 2 Engine 3 | 1 . . 2 Core 1 | . 1 . . Reactor . | . . . . Propulsion 9 | 2 2 1 4 Treads 2 | 2 . . . Leg 7 | . 2 1 4 Wheel . | . . . . Hover . | . . . . Flight . | . . . . Utility 5 | 1 4 . . Device 3 | . 3 . . Storage 2 | 1 1 . . Processor . | . . . . Hackware . | . . . . Protection . | . . . . Artifact . | . . . . Weapon 19 | 2 5 4 8 Energy Gun 7 | 1 2 2 2 Energy Cannon . | . . . . Ballistic Gun 9 | 1 3 . 5 Ballistic Cannon 1 | . . . 1 Launcher 1 | . . 1 . Special Weapon . | . . . . Impact Weapon . | . . . . Slashing Weapon . | . . . . Piercing Weapon . | . . . . Special Melee Weapon 1 | . . 1 . Unidentified Prototypes 4 | . 1 . 3 Parts Lost 27 | . 5 6 16 Power 4 | . 1 1 2 Propulsion 9 | . 2 2 5 Utility 2 | . 1 . 1 Weapon 12 | . 1 3 8 Highest Loss Streak 9 | . 2 3 9 To Critical Strikes . | . . . . Average Slot Usage (%) 82 | . 88 70 80 Engine 4 | . 2 . 8 Core 5 | . 10 5 . Treads 4 | . 10 . . Leg 18 | . 13 20 22 Device 8 | . 8 11 7 Storage 11 | . 14 11 9 Energy Gun 8 | . 10 7 7 Ballistic Gun 19 | . 17 13 25 Peak Build Rating 32 | 6 15 18 32 Average Rating 14 | 4 9 12 21 On Entrance 7 | . 6 15 8 Naked Turns . | . . . . Heaviest Build 61 | 14 52 53 61 Greatest Support 59 | 40 40 30 59 Greatest Overweight (x) 15 | 2 15 4 14 Average Overweight (x) 1 | . 1 2 1 Largest Inventory Capacity 20 | 8 20 20 20 Average Capacity 19 | 7 19 20 20 Most Carried 20 | 4 16 16 20 Average Carried 13 | 2 9 14 18 Final Capacity 20 | 8 20 20 20 Final Carried 19 | 4 15 13 19 Class Distribution -------------------- 53% | Mutant 28% | Skirmisher 11% | Scavenger-Mutant 6% | Gunner Dominant Class ---------------- Mutant | -10/Materials Mutant | -9/Materials Skirmisher | -8/Materials Resources | -11 -10 -9 -8 ----------- Run | Yrd Mat Mat Mat Matter Collected 1391 | 242 199 236 714 Remotely . | . . . . Salvage Created 2380 | . 539 564 1277 Parts 151 | . 40 47 64 Haulers Intercepted 2 | . . . 2 Recyclers Shooed 3 | . . . 3 Parts Field Recycled . | . . . . Retrieved Matter . | . . . . Parts Self-Destructed . | . . . . Prevented . | . . . . Kills | -11 -10 -9 -8 ------- Run | Yrd Mat Mat Mat Combat Hostiles Destroyed 45 | . 11 11 23 Guns 43 | . 10 10 23 AOE 2 | . 1 1 . Classes Destroyed 10 | . 5 1 4 Worker 8 | . . 3 5 Builder 3 | . 1 2 . Hauler 2 | . . . 2 Recycler 3 | . 1 2 . Watcher 7 | . 3 3 1 Swarmer 13 | . 3 6 4 Grunt 27 | . 8 5 14 Brawler 1 | . . . 1 Sentry 2 | . . . 2 Specialist 2 | . . . 2 Best Kill Streak 7 | . 4 5 7 Combat Bots Only 5 | . 3 4 5 Max Kills in Single Turn 2 | . 2 2 2 Gunslinging 1 | . . . 1 Exploded 1 | . 1 1 . Melee . | . . . . Uniques/NPCs Destroyed . | . . . . Combat | -11 -10 -9 -8 -------- Run | Yrd Mat Mat Mat Hostile Shots Fired 382 | . 105 100 177 Missed 118 | . 31 28 59 Damage Taken 3890 | . 853 824 2213 Core 867 | . 124 184 559 Absorbed by Shields . | . . . . Core Remaining (%) 68 | 100 50 54 . Volleys Fired 165 | . 50 36 79 Largest 4 | . 2 3 4 Hottest 114 | . 70 90 114 Shots Fired 409 | . 93 66 250 Gun 404 | . 93 64 247 Cannon 3 | . . . 3 Launcher 2 | . . 2 . Special . | . . . . Kinetic 318 | . 52 50 216 Thermal 36 | . 36 . . Explosive 2 | . . 2 . Electromagnetic 53 | . 5 14 34 Robot Hit Streak 17 | . 9 12 17 Robot Miss Streak 6 | . 3 4 6 Penetration Max . | . . . . Secondary Targets 7 | . 1 1 5 Max Gunslinging Chain 1 | . 1 1 1 Shots Hit Robots 262 | . 58 41 163 Core Hits 128 | . 24 26 78 Critical Kills . | . . . . Critical Parts Destroyed 1 | . . . 1 Critical Strikes 3 | . 1 . 2 Burn 1 | . 1 . . Destroy 1 | . . . 1 Blast 1 | . . . 1 Melee Attacks . | . . . . Impact . | . . . . Slashing . | . . . . Piercing . | . . . . Sneak Attacks . | . . . . Combat Hostiles . | . . . . Follow-up Attacks . | . . . . Damage Inflicted 4432 | . 748 893 2791 Guns 3852 | . 643 660 2549 Cannons 44 | . . . 44 Explosions 531 | . 105 233 193 Melee . | . . . . Ramming 5 | . . . 5 Kinetic 2995 | . 342 495 2158 Thermal 412 | . 337 22 53 Explosive 351 | . . 211 140 Electromagnetic 669 | . 69 165 435 Impact . | . . . . Slashing . | . . . . Piercing . | . . . . Highest Corruption 2 | . . . 2 Average Corruption 2 | . . . 2 Corruption Purged . | . . . . Corruption Blocked . | . . . . Effects 5 | . . . 5 Message Errors 1 | . . . 1 Matter Fused 1 | . . . 1 Heat Flow Errors 1 | . . . 1 Energy Discharges 1 | . . . 1 Misfires 1 | . . . 1 Overload Shots . | . . . . Overflow Damage 93 | . . 22 71 Projectiles . | . . . . Explosions 93 | . . 22 71 Melee . | . . . . Knockbacks 1 | . . . 1 Impact . | . . . . Kinetic 1 | . . . 1 Secondary . | . . . . Self-Inflicted Damage 249 | . 41 55 153 Shots 5 | . 1 2 2 Rammed . | . . . . Targets Rammed 1 | . . . 1 Kicked 1 | . . . 1 Crushed . | . . . . Highest Temperature 242 | . 152 54 242 Average Temperature 44 | . 38 9 52 Received Heat Transfer 1416 | . 282 306 828 Siege Activations . | . . . . Robots Corrupted . | . . . . Combat Hostiles . | . . . . Parts Fried . | . . . . Impact Corruptions . | . . . . Robots Melted . | . . . . Combat Hostiles . | . . . . Parts Melted 2 | . 2 . . Heat Transferred 1088 | . 988 50 50 Parts Sabotaged . | . . . . Parts Stolen . | . . . . Parts Stripped . | . . . . Power Chain Reactions 3 | . 1 1 1 Alert | -11 -10 -9 -8 ------- Run | Yrd Mat Mat Mat Peak Influence 452 | . 194 170 452 Initial 63 | . . 2 63 Average 77 | . 37 90 124 Maximum Alert Level 2 | . . . 2 Low Security (%) 93 | 100 100 100 82 Level 1 4 | . . . 11 Level 2 2 | . . . 6 Level 3 . | . . . . Level 4 . | . . . . Level 5 . | . . . . High Security . | . . . . Max Security . | . . . . Squads Dispatched 8 | . 3 . 5 Investigation 1 | . 1 . . Extermination . | . . . . Reinforcement 7 | . 2 . 5 Assault . | . . . . Garrison . | . . . . Intercept . | . . . . Searches Triggered . | . . . . Construction Impeded 1 | . . . 1 Haulers Reinforced . | . . . . Active Scanning Responses . | . . . . Cargo Convoy Interrupts . | . . . . Stealth | -11 -10 -9 -8 --------- Run | Yrd Mat Mat Mat Distress Signals 7 | . 3 1 3 Communications Jammed . | . . . . Distress Signals . | . . . . Times Spotted 78 | . 19 16 43 Peak Tracking Total 8 | . 5 4 8 Tactical Retreats 2 | . . 1 1 Traps | -11 -10 -9 -8 ------- Run | Yrd Mat Mat Mat Traps Triggered 1 | . 1 . . Indirectly . | . . . . Trap Hack Attempts . | . . . . Triggered . | . . . . Disarmed . | . . . . Reprogrammed . | . . . . Reused . | . . . . Traps Extracted . | . . . . Installed . | . . . . Triggered . | . . . . Machines | -11 -10 -9 -8 ---------- Run | Yrd Mat Mat Mat Machines Disabled 2 | . 1 . 1 Max in Single Turn 1 | . 1 . 1 Machines Repaired . | . . . . Machines Dismantled . | . . . . Machines Sabotaged . | . . . . Overloaded Fab Kills . | . . . . Hacking | -11 -10 -9 -8 --------- Run | Yrd Mat Mat Mat Machines Accessed 1 | . 1 . . Terminals 1 | . 1 . . Fabricators . | . . . . Repair Stations . | . . . . Recycling Units . | . . . . Scanalyzers . | . . . . Garrison Access . | . . . . Total Hacks 3 | . 3 . . Successful 1 | . 1 . . Failed 2 | . 2 . . Catastrophic . | . . . . Database Lockouts . | . . . . Manual . | . . . . Terminals 3 | . 3 . . Fabricators . | . . . . Repair Stations . | . . . . Recycling Units . | . . . . Scanalyzers . | . . . . Garrison Access . | . . . . Terminal Hacks 1 | . 1 . . Record 1 | . 1 . . Fabricator Hacks . | . . . . Repair Station Hacks . | . . . . Recycling Unit Hacks . | . . . . Scanalyzer . | . . . . Garrison Access Hacks . | . . . . Unauthorized Hacks . | . . . . Terminals . | . . . . Fabricators . | . . . . Repair Stations . | . . . . Recycling Units . | . . . . Scanalyzers . | . . . . Garrison Access . | . . . . Data Cores Recovered . | . . . . Used . | . . . . Hacking Detections . | . . . . Full Trace Events . | . . . . Feedback Events . | . . . . Feedback Blocked . | . . . . Robot Schematics Acquired . | . . . . Robots Built . | . . . . Authchips . | . . . . Time . | . . . . Total Robot Build Rating . | . . . . Part Schematics Acquired . | . . . . Parts Built . | . . . . Authchips . | . . . . Time . | . . . . Total Part Build Rating . | . . . . Parts Repaired . | . . . . Time . | . . . . Parts Recycled . | . . . . Recycled Matter . | . . . . Retrieved Matter . | . . . . Retrieved Components . | . . . . Parts Scanalyzed . | . . . . Part Schematics Acquired . | . . . . Parts Damaged . | . . . . Bothacking | -11 -10 -9 -8 ------------ Run | Yrd Mat Mat Mat Used RIF Installer . | . . . . Robots Hacked . | . . . . Non-combat . | . . . . Combat . | . . . . Robot Hacks Applied . | . . . . Relay Couplers Released . | . . . . Fabnet Peak Effective % . | . . . . Robots Rewired . | . . . . Allies Hacked . | . . . . Hacks Repelled . | . . . . Allies | -11 -10 -9 -8 -------- Run | Yrd Mat Mat Mat Total Allies . | . . . . Largest Group . | . . . . Highest-Rated Group . | . . . . Highest-Rated Ally . | . . . . Total Orders . | . . . . Ally Attacks . | . . . . Total Damage . | . . . . Kills . | . . . . Allies Corrupted . | . . . . Allies Melted . | . . . . Intel | -11 -10 -9 -8 ------- Run | Yrd Mat Mat Mat Robot Analysis Total . | . . . . Derelict Logs Recovered . | . . . . Drone Launches . | . . . . Drone Recoveries . | . . . . Exploration | -11 -10 -9 -8 ------------- Run | Yrd Mat Mat Mat Turns Passed 4203 | 93 1848 732 1530 Spaces Moved 1476 | 53 628 230 565 Core 12 | 6 4 . 2 Treads 353 | 47 306 . . Legs 1111 | . 318 230 563 Wheels . | . . . . Hover . | . . . . Flight . | . . . . Fastest Speed 50 | 50 160 190 125 Average Speed 242 | 152 265 271 213 Slowest Speed 800 | 160 800 400 750 Overloaded Moves . | . . . . Propulsion Burnouts . | . . . . Robots Hopped . | . . . . Cave-ins Triggered . | . . . . Exploration Rate (%) 33 | 5 77 18 35 Regions Visited 3 Branch Regions . Pre-discovered Areas . | . . . . Known Exits Taken . | . . . . Unknown Exits Taken 3 | 1 1 1 . Scrap Searched . | . . . . Spaces Dug . | . . . . Terrain Destroyed 56 | . 3 26 27 Melee . | . . . . Projectile . | . . . . AOE 56 | . 3 26 27 Terrain Rammed . | . . . . Walls Destroyed . | . . . . Machines Disabled . | . . . . Actions | -11 -10 -9 -8 --------- Run | Yrd Mat Mat Mat Total 1780 | 62 719 277 722 Wait 53 | . 14 4 35 Move 1473 | 52 627 229 565 Hop . | . . . . Pick Up 36 | 4 10 2 20 Fast Attach 22 | 6 9 . 7 Attach 14 | . 2 5 7 Detach 5 | . 4 1 . Swap 1 | . 1 . . Drop 10 | . 2 . 8 Fire 165 | . 50 36 79 Melee . | . . . . Ram . | . . . . Kick 1 | . . . 1 Crush . | . . . . Escape Stasis . | . . . . Rewire . | . . . . Trap . | . . . . Miscellaneous . | . . . . Route ------- -11/Scrapyard -10/Materials (discovered 3 exits: *Mat x2 / [Sub]) -9/Materials -8/Materials History --------- Turn | Location | Event 8 | -11/Scrapyard | Discovered new exit (range 16) 94 | -11/Scrapyard | Entered Materials 312 | -10/Materials | Build established: Mutant 787 | -10/Materials | Discovered new exit (range 15) 963 | -10/Materials | Discovered new exit (range 7) 1373 | -10/Materials | Build established: Scavenger-Mutant 1784 | -10/Materials | Discovered new exit (range 16) 1825 | -10/Materials | Build established: Mutant 1942 | -10/Materials | Entered another Materials area 1942 | -9/Materials | Evolved 2 slots: Propulsion x1, Weapon x1 2313 | -9/Materials | Lost 3 parts (1p1n1w) 2527 | -9/Materials | Discovered new exit (range 10) 2674 | -9/Materials | Entered another Materials area 2674 | -8/Materials | Evolved 2 slots: Propulsion x1, Weapon x1 3123 | -8/Materials | Build established: Skirmisher 4148 | -8/Materials | Core integrity fell below 50% 4186 | -8/Materials | Core integrity fell below 20% 4204 | -8/Materials | Destroyed by G-47 Trooper with Particle Gun Last Messages --------------- 04160_ ALERT: Hostiles spotted, dispatching reinforcements to Terminal M009. 04161_ Imp. Assault Rifle destroyed. 04171_ Cld. Ion Engine destroyed. 04173_ ALERT: Construction progress impeded, dispatching reinforcements to local area. 04173_ Titanium Leg destroyed. 04175_ Penetrated by Slug. 04178_ Imp. Assault Rifle destroyed. 04189_ System corrupted: Energy discharge (-39). 04192_ Terminal disabled. 04194_ Assault Rifle destroyed. 04194_ K-01 Serf collects debris. 04196_ Enh. Autogun destroyed. 04198_ Critical hit (Burn: +37). 04198_ K-01 Serf collects debris. 04200_ G-47 Trooper Aluminum Leg blasted off. 04200_ G-47 Trooper knocked back. 04201_ K-01 Serf collects debris. 04201_ O-16 Technician destroyed. Map ----- +----------------------------------------------------+ | ??????######### ##?## """ # ##????????? | | ???############ ##?## """""# ##????????? | | ???## /# ##?## """""#########????????? | | ??? + ??"" # ##?## = """""#########????????? | | ???## """"" # ##?## """ ##???????????????? | | ???## """"" # ##?## ##???????????????? | | ???## """"" # ##?#############???????????????? | | ???## """ + ##?#############???????????????? | | ???## # #####??????????????????????????? | | ??? + ] ]# ######?????????????????????????? | | ???############ !###?????????????????????????? | | ???## # !##?????????????????????????? | | ???## [ # !##?????????????????????????? | | ??? # %# !##?????????????????????????? | | ??? # [ *+% !##?????????????????????????? | | ??? # [% =# !########????????????????????? | | ??? # # ###########????????????????????? | | ??? # !! # ####! ##????????????????????? | | ??? # ! # **=* ##????????????????????? | | ??? # #### # =![ =k ##????????????????????? | | ??? ########### [=!/[ ##????????????????????? | | ???###############+### [##????????????????????? | | ??????## == ==## ###????????????????????? | | ??????## ====!## ###????????????????????? | | ??????## % ## ##?????????????????????? | | ??????## ##t=@##?????????????????????? | | ??????## ##u%=##?????????????????????? | | ??????## ;; g=##?????????????????????? | | ??????#################Hggg""#####???????????????? | | ?????? ^ g ????????? | | ??????? %% [[[ ????????? | | ??????? g ![%[[ ????????? | | ????????################/#;######/### ?????????? | | ??????????????????????? ? ?? ???????????????? | | ??????????????????????? "?" #?? !?????????????? | | ???????????????????????""?"" #??? #????????????? | | ???????????????????????""?"" #???? #????????????? | | ???????????????????????????" #????? ?????????????? | | ?????????????????????????????#???????????????????? | | ?????????????????????????????????????????????????? | | ?????????????????????????????????????????????????? | | ?????????????????????????????????????????????????? | | ?????????????????????????????????????????????????? | | ?????????????????????????????????????????????????? | | ?????????????????????????????????????????????????? | | ?????????????????????????????????????????????????? | | ?????????????????????????????????????????????????? | | ?????????????????????????????????????????????????? | | ?????????????????????????????????????????????????? | | ?????????????????????????????????????????????????? | +----------------------------------------------------+ Best States ------------- Heat Dissipation 31 Energy Generation 14 Energy Capacity 280 Matter Stores 300 Matter Capacity 300 Sight Range 16 Robot Scan Range 14 Terrain Scan Density 10 Evasion (%) 55 Recoil Reduction 2 Item Schematics ----------------- None Robot Schematics ------------------ None Fabricated ------------ Nothing Alien Tech Used ----------------- None Achievements -------------- None Challenges ------------ None Game ------ Seed TransportImprinterWell Manual? 0 Play Time 00:25:50 Cumulative 18.0 hours Start 2025.01.05 @ 18:38:50 End 2025.01.05 @ 19:04:47 Sessions 1 Manual Loads 0 Difficulty Rogue Special Mode None Game No. 34 Rogue 34 Adventurer 0 Explorer 0 Win Type - Total 0 Types 0/0/0/0/0/0/0/0/0 Lore% 7 Gallery% 12 Achievement% 14 Wizard Run 0 Options --------- Layout 0 ASCII 0 Keyboard 1 Movement Numpad Keybinds 0 Fullscreen 1 Font 24/Smallcaps Map View 76x50 Zoom Use 0% Tactical HUD 1 Map Filters NONE Filters NONE Steam 1 RUN: 39a82898-4dcb-4e07-890b-5f7bcb4e38ff